fUST/lending_fUST_20240927
["ID","MTS","AMOUNT","RATE_DAILY","PERIOD"]
[339262408,1727418641256,-500.0,0.00019178,2]
[339262409,1727418641266,-506.86488071,0.00019178,2]
[339262410,1727418641275,-500.0,0.00019178,2]
[339262411,1727418641285,-503.82682857,0.00019178,2]
[339262412,1727418641298,-640.18445733,0.00019178,2]
[339262413,1727418641309,-509.34441419,0.00019178,2]
[339262414,1727418641320,-505.39575549,0.00019178,2]
[339262415,1727418641330,-500.0,0.00019178,2]
[339262416,1727418641340,-508.70404606,0.00019178,2]
[339262417,1727418641350,-500.0,0.00019178,2]
[339262418,1727418641361,-505.33591757,0.00019178,2]
[339262419,1727418641370,-500.0,0.00019178,2]
[339262420,1727418641379,-500.0,0.00019178,2]
[339262421,1727418641389,-500.0,0.00019178,2]
[339262422,1727418641399,-525.11117407,0.00019178,2]
[339262423,1727418641410,-500.0,0.00019178,2]
[339262424,1727418641420,-500.0,0.00019178,2]
[339262425,1727418641430,-500.0,0.00019178,2]
[339262426,1727418641440,-500.0,0.00019178,2]
[339262427,1727418641451,-500.0,0.00019178,2]
[339262428,1727418641460,-500.0,0.00019178,2]
[339262429,1727418641469,-397.52466371,0.00019178,2]
[339262430,1727418641480,-505.58776362,0.00019178,2]
[339262431,1727418641490,-500.0,0.00019178,2]
[339262432,1727418641499,-500.0,0.00019178,2]
[339262433,1727418641509,-640.84628451,0.00019178,2]
[339262434,1727418641519,-500.0,0.00019178,2]
[339262435,1727418641529,-508.17203683,0.00019178,2]
[339262436,1727418641538,-510.55708519,0.00019178,2]
[339262437,1727418641547,-291.95922834,0.00019178,2]
[339262438,1727418641562,-211.92372407,0.00019178,2]
[339262439,1727418641571,-513.9071736,0.00019178,2]
[339262440,1727418641581,-46.85844283,0.00019178,2]
[339262441,1727418641593,-459.21167699,0.00019178,2]
[339262442,1727418641602,-281.36832301,0.00019178,2]
[339262443,1727418641614,-227.7499324,0.00019178,2]
[339262444,1727418641623,-500.0,0.00019178,2]
[339262445,1727418641633,-15.1060416,0.00019178,2]
[339262446,1727418641645,-507.95934049,0.00019178,2]
[339262447,1727418641655,-217.83565951,0.00019178,2]
[339262448,1727418641666,-282.16434049,0.00019178,2]
[339262449,1727418641676,-507.07870571,0.00019178,2]
[339262450,1727418641686,-500.0,0.00019178,2]
[339262451,1727418641697,-292.6522116,0.00019178,2]
[339262554,1727418746527,340.0,0.000126,2]
[339262555,1727418746900,340.0,0.0001319,2]
[339262556,1727418747661,340.0,0.0001378,2]
[339262557,1727418747844,340.0,0.0001437,2]
[339262558,1727418748190,340.0,0.0001496,2]
[339262559,1727418748546,150.43684637,0.0001732,2]
[339262561,1727419067517,270.0,0.000126,2]
[339262562,1727419067850,270.0,0.0001319,2]
[339262563,1727419068618,270.0,0.0001378,2]
[339262584,1727419493678,1324.767499,0.00013956,2]
[339262585,1727419578656,303.806361,0.00013845,2]
[339262586,1727419603127,-270.0,0.0001437,2]
[339262587,1727419603152,-159.8396009,0.00014673,2]
[339262588,1727419638158,-90.1603991,0.00014673,2]
[339262589,1727419638183,-250.0,0.00014714,2]
[339262590,1727419638207,-85.75134447,0.00014754,2]
[339262591,1727419644102,-164.24865553,0.00014754,2]
[339262592,1727419644125,-250.0,0.00014794,2]
[339262593,1727419644146,-258.94941036,0.00014831,2]
[339262594,1727419644168,-369.66981651,0.00014832,2]
[339262595,1727419644191,-184.63032986,0.00014834,2]
[339262596,1727419684472,3000.0,0.00013927,2]
[339262597,1727419695615,1000.0,0.00021,60]
[339262598,1727419697850,837.032113,0.00013927,2]
[339262599,1727419746180,-837.032113,0.00014612,2]
[339262600,1727419746203,-65.36967014,0.00014834,2]
[339262601,1727419746227,-250.0,0.00014875,2]
[339262602,1727419746249,-250.0,0.00014915,2]
[339262603,1727419746271,-300.0,0.00014929,2]
[339262604,1727419746293,-300.0,0.00014929,2]
[339262605,1727419746317,-500.0,0.0001493,2]
[339262606,1727419746340,-500.0,0.0001493,2]
[339262607,1727419746364,-500.0,0.0001493,2]
[339262608,1727419746386,-500.0,0.0001493,2]
[339262609,1727419746411,-500.0,0.0001493,2]
[339262610,1727419746433,-500.0,0.0001493,2]
[339262611,1727419746456,-500.0,0.0001493,2]
[339262612,1727419746477,-500.0,0.0001493,2]
[339262613,1727419746503,-500.0,0.0001493,2]
[339262614,1727419746523,-500.0,0.0001493,2]
[339262615,1727419746546,-500.0,0.0001493,2]
[339262616,1727419746573,-500.0,0.0001493,2]
[339262617,1727419746595,-550.0,0.0001493,2]
[339262618,1727419746618,-500.0,0.0001493,2]
[339262619,1727419746641,-500.0,0.0001493,2]
[339262620,1727419746665,-500.0,0.0001493,2]
[339262621,1727419746687,-500.0,0.0001493,2]
[339262622,1727419746711,-500.0,0.0001493,2]
[339262623,1727419746733,-500.0,0.0001493,2]
[339262624,1727419746755,-500.0,0.0001493,2]
[339262625,1727419746778,-500.0,0.0001493,2]
[339262626,1727419746803,-500.0,0.0001493,2]
[339262627,1727419746825,-500.0,0.0001493,2]
[339262628,1727419746849,-500.0,0.0001493,2]
[339262629,1727419746872,-500.0,0.0001493,2]
[339262630,1727419746894,-500.0,0.0001493,2]
[339262631,1727419746918,-500.0,0.0001493,2]
[339262632,1727419746942,-500.0,0.0001493,2]
[339262633,1727419746964,-500.0,0.0001493,2]
[339262634,1727419746990,-500.0,0.0001493,2]
[339262635,1727419747012,-500.0,0.0001493,2]
[339262636,1727419747036,-500.0,0.0001493,2]
[339262637,1727419747058,-500.0,0.0001493,2]
[339262638,1727419747078,-500.0,0.0001493,2]
[339262639,1727419747102,-500.0,0.0001493,2]
[339262640,1727419747125,-500.0,0.0001493,2]
[339262641,1727419747147,-500.0,0.0001493,2]
[339262642,1727419747168,-500.0,0.0001493,2]
[339262643,1727419747191,-500.0,0.0001493,2]
[339262644,1727419747212,-500.0,0.0001493,2]
[339262645,1727419747233,-500.0,0.0001493,2]
[339262646,1727419747256,-500.0,0.0001493,2]
[339262647,1727419747278,-500.0,0.0001493,2]
[339262648,1727419747302,-500.0,0.0001493,2]
[339262649,1727419747324,-500.0,0.0001493,2]
[339262650,1727419747348,-500.0,0.0001493,2]
[339262651,1727419747370,-500.0,0.0001493,2]
[339262652,1727419747392,-500.0,0.0001493,2]
[339262653,1727419747417,-500.0,0.0001493,2]
[339262654,1727419747445,-500.0,0.0001493,2]
[339262655,1727419747467,-500.0,0.0001493,2]
[339262656,1727419747497,-500.0,0.0001493,2]
[339262657,1727419747528,-500.0,0.0001493,2]
[339262658,1727419747556,-500.0,0.0001493,2]
[339262659,1727419747588,-500.0,0.0001493,2]
[339262660,1727419747639,-500.0,0.0001493,2]
[339262661,1727419747678,-500.0,0.0001493,2]
[339262662,1727419747718,-500.0,0.0001493,2]
[339262663,1727419747750,-500.0,0.0001493,2]
[339262664,1727419747779,-300.0,0.0001493,2]
[339262665,1727419747814,-500.0,0.0001493,2]
[339262666,1727419747847,-500.0,0.0001493,2]
[339262667,1727419747874,-500.0,0.0001493,2]
[339262668,1727419747903,-500.0,0.0001493,2]
[339262669,1727419747932,-500.0,0.0001493,2]
[339262670,1727419747962,-500.0,0.0001493,2]
[339262671,1727419747991,-500.0,0.0001493,2]
[339262672,1727419748026,-500.0,0.0001493,2]
[339262673,1727419748055,-500.0,0.0001493,2]
[339262674,1727419748080,-500.0,0.0001493,2]
[339262675,1727419748107,-500.0,0.0001493,2]
[339262676,1727419748139,-500.0,0.0001493,2]
[339262677,1727419748166,-500.0,0.0001493,2]
[339262678,1727419748196,-500.0,0.0001493,2]
[339262679,1727419748228,-500.0,0.0001493,2]
[339262680,1727419748255,-500.0,0.0001493,2]
[339262681,1727419748282,-500.0,0.0001493,2]
[339262682,1727419748314,-500.0,0.0001493,2]
[339262683,1727419748352,-500.0,0.0001493,2]
[339262684,1727419748382,-500.0,0.0001493,2]
[339262685,1727419748417,-500.0,0.0001493,2]
[339262686,1727419748448,-500.0,0.0001493,2]
[339262687,1727419748477,-500.0,0.0001493,2]
[339262688,1727419748510,-500.0,0.0001493,2]
[339262689,1727419748542,-500.0,0.0001493,2]
[339262690,1727419748569,-500.0,0.0001493,2]
[339262691,1727419748599,-500.0,0.0001493,2]
[339262692,1727419748625,-500.0,0.0001493,2]
[339262693,1727419748651,-500.0,0.0001493,2]
[339262694,1727419748681,-500.0,0.0001493,2]
[339262695,1727419748709,-500.0,0.0001493,2]
[339262696,1727419748744,-500.0,0.0001493,2]
[339262697,1727419748783,-500.0,0.0001493,2]
[339262698,1727419748815,-500.0,0.0001493,2]
[339262699,1727419748850,-500.0,0.0001493,2]
[339262700,1727419748881,-500.0,0.0001493,2]
[339262701,1727419748909,-248.30465623,0.0001493,2]
[339262702,1727419748941,-500.0,0.0001493,2]
[339262703,1727419748971,-500.0,0.0001493,2]
[339262704,1727419749001,-500.0,0.0001493,2]
[339262705,1727419749031,-500.0,0.0001493,2]
[339262706,1727419749060,-500.0,0.0001493,2]
[339262707,1727419749089,-500.0,0.0001493,2]
[339262708,1727419749119,-500.0,0.0001493,2]
[339262709,1727419749150,-500.0,0.0001493,2]
[339262710,1727419749176,-500.0,0.0001493,2]
[339262711,1727419749201,-500.0,0.0001493,2]
[339262712,1727419749226,-377.64143859,0.0001493,2]
[339262713,1727419749425,-500.0,0.0001493,2]
[339262714,1727419749451,-500.0,0.0001493,2]
[339262715,1727419749474,-500.0,0.0001493,2]
[339262716,1727419749499,-500.0,0.0001493,2]
[339262717,1727419749523,-500.0,0.0001493,2]
[339262718,1727419749547,-500.0,0.0001493,2]
[339262719,1727419749570,-5108.43251454,0.00014933,2]
[339262720,1727419750112,-19791.56748546,0.00014933,2]
[339262721,1727419750134,-170.66743658,0.00014936,2]
[339262722,1727419750155,-250.0,0.00014955,2]
[339262723,1727419750175,-270.0,0.0001496,2]
[339262724,1727419750199,-500.0,0.00014973,2]
[339262725,1727419750219,-500.45794701,0.00014973,2]
[339262726,1727419750240,-500.0,0.00014973,2]
[339262727,1727419750260,-500.0,0.00014973,2]
[339262728,1727419750280,-501.2880644,0.00014973,2]
[339262729,1727419750300,-500.0,0.00014973,2]
[339262730,1727419750320,-501.18527926,0.00014973,2]
[339262731,1727419750341,-250.0,0.00014995,2]
[339262732,1727419750363,-250.0,0.00015036,2]
[339262733,1727419750384,-250.0,0.00015076,2]
[339262734,1727419750406,-250.0,0.00015116,2]
[339262735,1727419750433,-250.0,0.00015156,2]
[339262736,1727419750459,-250.0,0.00015197,2]
[339262737,1727419750479,-250.0,0.00015237,2]
[339262738,1727419750501,-250.0,0.00015277,2]
[339262739,1727419750522,-837.032113,0.00015297,2]
[339262740,1727419750543,-250.0,0.00015317,2]
[339262741,1727419750563,-166.666666,0.00015353,2]
[339262742,1727419750584,-250.0,0.00015358,2]
[339262743,1727419750605,-250.0,0.00015398,2]
[339262744,1727419750627,-250.0,0.00015438,2]
[339262745,1727419750648,-500.0,0.0001552,2]
[339262746,1727419750674,-302.04210597,0.0001552,2]
[339262747,1727419750705,-199.16373428,0.0001552,2]
[339262748,1727419750727,-245.56792625,0.0001552,2]
[339262749,1727419750753,-500.0,0.0001552,2]
[339262750,1727419750775,-500.0,0.0001552,2]
[339262751,1727419750797,-293.0223095,0.0001552,2]
[339262752,1727419750817,-366.45558618,0.00015521,2]
[339262753,1727419750837,-1000.0,0.00015521,2]
[339262754,1727419750857,-1000.0,0.00015521,2]
[339262755,1727419750877,-1000.0,0.00015521,2]
[339262756,1727419750897,-619.947821,0.000157,2]
[339262757,1727419750918,-576.430802,0.00015756,2]
[339262758,1727419750946,-30856.5056557,0.00015952,2]
[339262759,1727419750966,-25158.1178737,0.00015952,2]
[339262760,1727419750991,-6755.5608197,0.00015963,2]
[339262761,1727419751012,-170.66743655,0.00015972,2]
[339262762,1727419751033,-3000.0,0.00016,2]
[339262763,1727419751057,-182.73366371,0.00016,2]
[339262764,1727419751078,-3000.0,0.0001601,2]
[339262765,1727419751099,-3000.0,0.0001602,2]
[339262766,1727419751118,-3000.0,0.0001603,2]
[339262767,1727419751140,-3000.0,0.0001604,2]
[339262768,1727419751161,-3000.0,0.0001605,2]
[339262769,1727419751180,-2711.2460372,0.00016051,2]
[339262770,1727419751211,-166.666666,0.00016051,2]
[339262771,1727419751232,-3000.0,0.0001606,2]
[339262772,1727419751253,-3000.0,0.0001607,2]
[339262773,1727419751273,-3000.0,0.0001608,2]
[339262774,1727419751294,-3000.0,0.0001609,2]
[339262775,1727419751315,-3000.0,0.000161,2]
[339262776,1727419751336,-3000.0,0.0001611,2]
[339262777,1727419751357,-3000.0,0.0001612,2]
[339262778,1727419751377,-3000.0,0.0001613,2]
[339262779,1727419751398,-30856.5056557,0.0001613,2]
[339262780,1727419751421,-25158.1178737,0.0001613,2]
[339262781,1727419751450,-5972.995119,0.0001614,2]
[339262782,1727419751471,-1500.0,0.00016231,2]
[339262783,1727419751492,-274.40278859,0.00016231,2]
[339262784,1727419751512,-1500.0,0.00016231,2]
[339262785,1727419751533,-420.0,0.0001634,2]
[339262786,1727419751555,-420.0,0.00016422,2]
[339262787,1727419751575,-156.072642,0.000165,2]
[339262788,1727419751595,-166.666666,0.00016748,2]
[339262789,1727419751616,-150.112233,0.000169,2]
[339262790,1727419751640,-170.66743655,0.00017007,2]
[339262791,1727419751660,-2000.0,0.0001702,2]
[339262792,1727419751680,-716.25980834,0.0001702,2]
[339262793,1727419752092,-245.0,0.0001493,2]
[339262798,1727419756091,-255.0,0.0001493,2]
[339262799,1727419756113,-500.0,0.0001493,2]
[339262800,1727419756135,-437.76414385,0.0001493,2]
[339262801,1727419756156,-607.97974619,0.0001702,2]
[339262802,1727419756176,-15.65129354,0.000173,2]
[339262803,1727419757155,-134.46093946,0.000173,2]
[339262804,1727419757177,-270.0,0.0001732,2]
[339262805,1727419757201,-166.666666,0.00017446,2]
[339262806,1727419758132,-500.0,0.00017673,2]
[339262807,1727419758155,-500.0,0.00017673,2]
[339262808,1727419758176,-200.230748,0.00017673,2]
[339262809,1727419758198,-500.0,0.000177,2]
[339262810,1727419758218,-500.0,0.000177,2]
[339262811,1727419758240,-150.112233,0.000177,2]
[339262812,1727419766764,500.0,0.00014973,2]
[339262813,1727419766824,499.82937443,0.00015521,2]
[339262814,1727419772140,659.53073896,0.00017785,2]
[339262815,1727419775685,1283.10553182,0.0001,2]
[339262816,1727419775712,1778.76292482,0.0001,2]
[339262817,1727419775735,1728.47590287,0.0001,2]
[339262818,1727419775758,12880.15888349,0.0001,2]
[339262948,1727419838988,-346.76838027,0.00017785,2]
[339262950,1727419838999,-170.66743655,0.00018043,2]
[339262952,1727419839011,-150.112233,0.000181,2]
[339262954,1727419839020,-1000.0,0.00018221,2]
[339262956,1727419839029,-1000.0,0.00018248,2]
[339262958,1727419839038,-1000.0,0.00018248,2]
[339262960,1727419839048,-500.0,0.00018355,2]
[339262962,1727419839057,-153.0,0.000184,2]
[339262964,1727419839066,-150.112233,0.000185,2]
[339262966,1727419839076,-5320.23730723,0.00018824,2]
[339262968,1727419839085,-300.0,0.00018856,2]
[339262970,1727419839094,-300.0,0.00018856,2]
[339262972,1727419839104,-150.112233,0.000189,2]
[339262974,1727419839114,-275.43860834,0.00018931,2]
[339262976,1727419839123,-1014.50758333,0.00018942,2]
[339262978,1727419839139,-4305.7297239,0.00018942,2]
[339262980,1727419839148,-553.66758074,0.00018959,2]
[339262982,1727419839158,-1000.0,0.00019,19]
[339262984,1727419839168,-172.63294024,0.00019039,2]
[339262987,1727419839178,-172.63294022,0.00019054,2]
[339262989,1727419839187,-172.63294022,0.00019068,2]
[339262991,1727419839196,-3657.73226455,0.00019076,2]
[339262993,1727419839205,-170.66743655,0.00019078,2]
[339262995,1727419839215,-153.0,0.00019132,2]
[339262997,1727419839224,-500.0,0.00019137,2]
[339262999,1727419839233,-500.0,0.00019137,2]
[339263000,1727419839242,-500.0,0.00019137,2]
[339263002,1727419839254,-500.0,0.00019137,2]
[339263004,1727419839264,-500.0,0.00019137,2]
[339263006,1727419839273,-500.0,0.00019137,2]
[339263008,1727419839282,-274.83046562,0.00019137,2]
[339263010,1727419839292,-500.0,0.00019137,2]
[339263012,1727419839301,-500.0,0.00019137,2]
[339263014,1727419839310,-500.0,0.00019137,2]
[339263016,1727419839321,-248.77641439,0.00019137,2]
[339263018,1727419839330,-19950.70518046,0.00019138,3]
[339263129,1727419840719,-10905.80047524,0.00019138,3]
[339263130,1727419840729,-25158.1178737,0.00019138,3]
[339263131,1727419840738,-211.42947418,0.00019156,2]
[339263132,1727419840748,-171.89754838,0.00019156,2]
[339263133,1727419840759,-450.0,0.00019156,2]
[339263134,1727419840769,-182.73366371,0.00019157,2]
[339263135,1727419840778,-30856.5056557,0.00019157,3]
[339263136,1727419840787,-25158.1178737,0.00019157,3]
[339263137,1727419840797,-30856.5056557,0.00019167,3]
[339263138,1727419840807,-25158.1178737,0.00019167,3]
[339263139,1727419840819,-2062.03837689,0.00019168,2]
[339263140,1727419840828,-153.936186,0.00019168,2]
[339263141,1727419840840,-151.0,0.00019168,2]
[339263142,1727419840850,-151.0,0.00019168,2]
[339263143,1727419840860,-151.0,0.00019168,2]
[339263144,1727419840869,-151.0,0.00019168,2]
[339263145,1727419840878,-151.0,0.00019168,2]
[339263146,1727419840887,-151.0,0.00019168,2]
[339263147,1727419840896,-151.0,0.00019168,2]
[339263148,1727419840905,-451.69493,0.00019168,2]
[339263149,1727419840915,-451.69493,0.00019168,2]
[339263150,1727419840925,-246.484232,0.00019168,2]
[339263151,1727419840934,-236.521968,0.00019168,2]
[339263152,1727419840943,-246.484232,0.00019168,2]
[339263153,1727419840952,-151.0,0.00019168,2]
[339263154,1727419840962,-236.521968,0.00019168,2]
[339263155,1727419840971,-151.0,0.00019168,2]
[339263156,1727419840980,-151.0,0.00019168,2]
[339263157,1727419840989,-123426.022623,0.00019168,3]
[339263158,1727419840999,-79725.7489472,0.00019168,3]
[339263159,1727419841011,-20906.7225478,0.00019168,3]
[339263160,1727419841021,-652.07533208,0.00019176,2]
[339263161,1727419841030,-1000.0,0.00019177,2]
[339263162,1727419841039,-270.12948126,0.00019177,2]
[339263163,1727419841048,-366.67751789,0.00019177,2]
[339263164,1727419841058,-2000.0,0.00019177,2]
[339263165,1727419841068,-2000.0,0.00019177,2]
[339263166,1727419841077,-2000.0,0.00019177,2]
[339263167,1727419841087,-2000.0,0.00019177,2]
[339263168,1727419841096,-2000.0,0.00019177,2]
[339263169,1727419841105,-2000.0,0.00019177,2]
[339263170,1727419841114,-2000.0,0.00019177,2]
[339263171,1727419841123,-2000.0,0.00019177,2]
[339263172,1727419841132,-2000.0,0.00019177,2]
[339263173,1727419841143,-2000.0,0.00019177,2]
[339263174,1727419841152,-1024.72903075,0.00019177,2]
[339263175,1727419841162,-151.0,0.00019177,2]
[339263176,1727419841171,-151.0,0.00019177,2]
[339263177,1727419841180,-151.0,0.00019177,2]
[339263178,1727419841190,-151.0,0.00019177,2]
[339263179,1727419841200,-151.0,0.00019177,2]
[339263180,1727419841209,-230.620288,0.00019177,2]
[339263181,1727419841219,-230.620288,0.00019177,2]
[339263182,1727419841228,-187.016246,0.00019177,2]
[339263183,1727419841237,-187.016246,0.00019177,2]
[339263184,1727419841247,-151.0,0.00019177,2]
[339263185,1727419841258,-566.291545,0.00019177,2]
[339263186,1727419841267,-566.291545,0.00019177,2]
[339263187,1727419841276,-151.0,0.00019177,2]
[339263188,1727419841286,-151.0,0.00019177,2]
[339263189,1727419841295,-297.778896,0.00019177,2]
[339263190,1727419841305,-297.778896,0.00019177,2]
[339263191,1727419841315,-151.0,0.00019177,2]
[339263192,1727419841326,-151.0,0.00019177,2]
[339263193,1727419841336,-238.582917,0.00019177,2]
[339263194,1727419841346,-238.582917,0.00019177,2]
[339263195,1727419841356,-152.700829,0.00019177,2]
[339263196,1727419841366,-174.204394,0.00019177,2]
[339263197,1727419841375,-174.204394,0.00019177,2]
[339263198,1727419841384,-3170.35087278,0.00019178,2]
[339263199,1727419841394,-450.80446651,0.00019178,2]
[339263200,1727419841403,-500.0,0.00019178,2]
[339263201,1727419841412,-500.0,0.00019178,2]
[339263202,1727419841421,-392.81129836,0.00019178,2]
[339263203,1727419841430,-509.55219118,0.00019178,2]
[339263204,1727419841439,-509.23544365,0.00019178,2]
[339263205,1727419841448,-505.71985216,0.00019178,2]
[339263206,1727419841457,-504.59739924,0.00019178,2]
[339263207,1727419841467,-500.0,0.00019178,2]
[339263208,1727419841477,-500.0,0.00019178,2]
[339263209,1727419841490,-500.0,0.00019178,2]
[339263210,1727419841499,-500.0,0.00019178,2]
[339263211,1727419841509,-500.0,0.00019178,2]
[339263212,1727419841518,-500.0,0.00019178,2]
[339263213,1727419841528,-511.98867425,0.00019178,2]
[339263214,1727419841537,-532.2860356,0.00019178,2]
[339263215,1727419841546,-500.0,0.00019178,2]
[339263216,1727419841556,-588.54975964,0.00019178,2]
[339263217,1727419841567,-504.58704169,0.00019178,2]
[339263218,1727419841577,-505.49420138,0.00019178,2]
[339263219,1727419841586,-531.63434114,0.00019178,2]
[339263220,1727419841595,-504.89945901,0.00019178,2]
[339263221,1727419841605,-504.13947938,0.00019178,2]
[339263222,1727419841615,-500.0,0.00019178,2]
[339263223,1727419841624,-603.61750877,0.00019178,2]
[339263224,1727419841633,-156.51564648,0.00019178,2]
[339263253,1727419846745,-283.52364417,0.00014735,2]
[339263276,1727420003428,240.0,0.000126,2]
[339263277,1727420003832,240.0,0.0001319,2]
[339263278,1727420004277,240.0,0.0001378,2]
[339263279,1727420242462,827.38,0.00010959,2]
[339263280,1727420311768,190.018476,0.00013752,2]
[339263281,1727420361541,3000.0,0.00014094,2]
[339263299,1727420518841,250.0,0.00013688,2]
[339263301,1727420612066,24900.0,0.00013698,2]
[339263302,1727420618513,250.0,0.00013801,2]
[339263303,1727420618717,250.0,0.00013839,2]
[339263304,1727420618943,250.0,0.00013877,2]
[339263305,1727420619146,250.0,0.00013915,2]
[339263306,1727420619388,250.0,0.00013952,2]
[339263307,1727420619609,250.0,0.0001399,2]
[339263308,1727420619805,250.0,0.00014028,2]
[339263309,1727420620022,250.0,0.00014066,2]
[339263310,1727420620239,250.0,0.00014104,2]
[339263311,1727420704074,1846.2867504,0.00013489,2]
[339263312,1727420740257,1246.533692,0.00013699,2]
[339263313,1727420782857,-250.0,0.00014142,2]
[339263314,1727420782883,-250.0,0.0001418,2]
[339263315,1727420782910,-250.0,0.00014217,2]
[339263316,1727420782936,-250.0,0.00014255,2]
[339263317,1727420782962,-250.0,0.00014293,2]
[339263318,1727420782986,-250.0,0.00014331,2]
[339263319,1727420783011,-250.0,0.00014369,2]
[339263320,1727420783033,-240.0,0.0001437,2]
[339263321,1727420783057,-162.82728621,0.00014382,2]
[339263322,1727420783081,-250.0,0.00014407,2]
[339263323,1727420783104,-250.0,0.00014445,2]
[339263324,1727420783126,-190.018476,0.00014475,2]
[339263325,1727420783148,-558.061465,0.00014481,2]
[339263326,1727420783171,-250.0,0.00014482,2]
[339263327,1727420783194,-250.0,0.0001452,2]
[339263328,1727420783216,-193.14018432,0.00014635,2]
[339263329,1727420783238,-300.0,0.00014734,2]
[339263330,1727420783260,-8024.16644021,0.00014735,2]
[339263331,1727420783282,-500.0,0.00014773,2]
[339263332,1727420783303,-500.38475538,0.00014773,2]
[339263333,1727420783324,-171.59508098,0.00014773,2]
[339263334,1727420783346,-500.0,0.00014773,2]
[339263335,1727420783367,-500.0,0.00014773,2]
[339263336,1727420783391,-500.0,0.00014793,2]
[339263337,1727420783413,-154.2942215,0.00014793,2]
[339263338,1727420783436,-500.0,0.00014793,2]
[339263339,1727420783459,-500.0,0.00014793,2]
[339263340,1727420783485,-500.0,0.00014793,2]
[339263341,1727420783508,-500.0,0.00014793,2]
[339263342,1727420783533,-500.0,0.00014793,2]
[339263343,1727420783555,-500.0,0.00014793,2]
[339263344,1727420783578,-500.0,0.00014793,2]
[339263345,1727420783600,-500.0,0.00014793,2]
[339263346,1727420783625,-500.0,0.00014793,2]
[339263347,1727420783648,-419.04740451,0.00014793,2]
[339263348,1727420783672,-583.91627049,0.00014793,2]
[339263349,1727420783697,-500.0,0.00014793,2]
[339263350,1727420783725,-500.0,0.00014793,2]
[339263351,1727420783750,-500.0,0.00014793,2]
[339263352,1727420783773,-500.0,0.00014793,2]
[339263353,1727420783797,-500.0,0.00014793,2]
[339263354,1727420783822,-500.0,0.00014793,2]
[339263355,1727420783845,-500.0,0.00014793,2]
[339263356,1727420783870,-500.0,0.00014793,2]
[339263357,1727420783893,-371.00568881,0.00014793,2]
[339263358,1727420783919,-500.0,0.00014793,2]
[339263359,1727420783943,-500.0,0.00014793,2]
[339263360,1727420783971,-500.0,0.00014793,2]
[339263361,1727420783996,-500.0,0.00014793,2]
[339263362,1727420784021,-500.0,0.00014793,2]
[339263363,1727420784051,-500.0,0.00014793,2]
[339263364,1727420784075,-500.0,0.00014793,2]
[339263365,1727420784098,-500.0,0.00014793,2]
[339263366,1727420784251,-500.0,0.00014793,2]
[339263367,1727420784279,-500.0,0.00014793,2]
[339263368,1727420784304,-500.0,0.00014793,2]
[339263369,1727420784331,-500.0,0.00014793,2]
[339263370,1727420784354,-500.0,0.00014793,2]
[339263371,1727420784383,-500.0,0.00014793,2]
[339263372,1727420784406,-500.0,0.00014793,2]
[339263373,1727420784432,-500.0,0.00014793,2]
[339263374,1727420784458,-500.0,0.00014793,2]
[339263375,1727420784484,-532.95878991,0.00014793,2]
[339263376,1727420784507,-500.0,0.00014793,2]